bitfinex-derivatives/quotes_BTCF0:USTF0_20251109
["timestamp","ask_amount","ask_price","bid_price","bid_amount"]
[1762650064253,0.04429702,101860.0,101850.0,0.61908586]
[1762650064453,0.0678104,101860.0,101850.0,0.61908586]
[1762650069960,0.1660233,101860.0,101850.0,0.61908586]
[1762650070153,0.0678104,101860.0,101850.0,0.61908586]
[1762650070355,0.0453104,101860.0,101850.0,0.61908586]
[1762650071153,0.0236604,101860.0,101850.0,0.72100932]
[1762650071361,4e-07,101860.0,101850.0,0.72100932]
[1762650071864,0.03531562,101880.0,101870.0,0.1541532]
[1762650072061,0.50508936,101890.0,101880.0,0.1546835]
[1762650072267,0.55035952,101890.0,101880.0,0.25660696]
[1762650072454,0.5150439,101890.0,101880.0,0.25649726]
[1762650073053,0.5150439,101890.0,101880.0,0.35831102]
[1762650073560,0.5150439,101890.0,101880.0,0.25649726]
[1762650073963,0.1542439,101890.0,101880.0,0.35831102]
[1762650074554,0.1425739,101890.0,101880.0,0.71911102]
[1762650075260,0.04439,101890.0,101880.0,0.71911102]
[1762650075454,0.02119,101890.0,101880.0,0.71911102]
[1762650075655,0.55050434,101900.0,101890.0,0.1547939]
[1762650075858,0.38213702,101900.0,101890.0,0.25660766]
[1762650076567,0.02133702,101900.0,101890.0,0.25660766]
[1762650076767,0.04453702,101900.0,101890.0,0.25660766]
[1762650077464,0.02133702,101900.0,101890.0,0.25660766]
[1762650077666,0.00014702,101900.0,101890.0,0.25660766]
[1762650077963,0.04453702,101900.0,101890.0,0.61740766]
[1762650078766,0.02133702,101900.0,101890.0,0.61740766]
[1762650079460,0.00014702,101900.0,101890.0,0.61740766]
[1762650081969,0.00014702,101900.0,101890.0,0.71922142]
[1762650082771,0.00014702,101900.0,101890.0,0.61740766]
[1762650083871,0.02345628,101900.0,101890.0,0.61740766]
[1762650084968,0.02345628,101900.0,101890.0,0.71922142]
[1762650085574,0.02345628,101900.0,101890.0,1.11278142]
[1762650085763,0.09153562,101920.0,101910.0,0.1432746]
[1762650085958,0.18969062,101920.0,101910.0,0.24508836]
[1762650086163,0.18969062,101920.0,101910.0,0.25725836]
[1762650086566,0.18969062,101920.0,101910.0,0.1554446]
[1762650086872,0.18969062,101920.0,101910.0,0.25725836]
[1762650089072,0.154375,101920.0,101910.0,0.25725836]
[1762650091165,0.154375,101920.0,101910.0,0.61805836]
[1762650095072,0.154375,101920.0,101910.0,0.76625836]
[1762650096172,0.71880252,101920.0,101910.0,0.1482]
[1762650096476,0.80703188,101920.0,101910.0,0.1482]
[1762650096976,0.80687349,101920.0,101910.0,0.1482]
[1762650097876,0.82996325,101920.0,101910.0,0.1482]
[1762650098074,0.77704951,101920.0,101910.0,0.1482]
[1762650099076,0.79480602,101920.0,101910.0,0.1482]
[1762650100174,0.79472135,101920.0,101910.0,0.1482]
[1762650100372,0.79472135,101920.0,101900.0,0.00014702]
[1762650100373,0.1557946,101910.0,101900.0,0.00014702]
[1762650100669,0.69432785,101910.0,101900.0,0.00014702]
[1762650100876,0.69432785,101910.0,101900.0,0.02163702]
[1762650101068,0.69432785,101910.0,101900.0,0.04396702]
[1762650101273,0.64149812,101910.0,101900.0,0.04396702]
[1762650101476,0.69436285,101910.0,101900.0,0.04396702]
[1762650106681,0.69936285,101910.0,101900.0,0.04396702]
[1762650108280,0.69936285,101910.0,101900.0,0.00014702]
[1762650108476,0.69936285,101910.0,101900.0,0.02254702]
[1762650108784,0.69936285,101910.0,101900.0,0.00014702]
[1762650109175,0.69936285,101910.0,101900.0,0.02254702]
[1762650112489,0.73461204,101910.0,101900.0,0.02254702]
[1762650112980,0.73461204,101910.0,101900.0,0.00014702]
[1762650113167,0.68174731,101910.0,101900.0,0.00014702]
[1762650115086,0.73461204,101910.0,101900.0,0.02254702]
[1762650115379,0.73461204,101910.0,101900.0,0.00014702]
[1762650115774,0.8364258,101910.0,101900.0,0.00014702]
[1762650116074,0.73461204,101910.0,101900.0,0.00014702]
[1762650117381,0.73461204,101910.0,101900.0,0.04300702]
[1762650117887,1.01982731,101910.0,101900.0,0.05689702]
[1762650118083,1.07269204,101910.0,101900.0,0.05689702]
[1762650119083,1.01982731,101910.0,101900.0,0.05689702]
[1762650119586,0.68174731,101910.0,101900.0,0.05689702]
[1762650121070,0.66834731,101910.0,101900.0,0.15507132]
[1762650121277,0.66834731,101910.0,101900.0,0.25688508]
[1762650121475,0.30754731,101910.0,101900.0,0.15507132]
[1762650122386,0.36041204,101910.0,101900.0,0.15507132]
[1762650124092,0.37306204,101910.0,101900.0,0.05689702]
[1762650124986,0.37306204,101910.0,101900.0,0.15507132]
[1762650125492,0.73386204,101910.0,101900.0,0.04300702]
[1762650126295,0.69861285,101910.0,101900.0,0.04300702]
[1762650126793,0.59679909,101910.0,101900.0,0.04300702]
[1762650126993,0.69861285,101910.0,101900.0,0.04300702]
[1762650127391,0.7339316,101910.0,101900.0,0.04300702]
[1762650127591,0.69861285,101910.0,101900.0,0.04300702]
[1762650128098,0.73393226,101910.0,101900.0,0.04300702]
[1762650128987,0.69861285,101910.0,101900.0,0.02157702]
[1762650129188,0.69861285,101910.0,101900.0,0.04300702]
[1762650132386,0.64575109,101910.0,101900.0,0.04300702]
[1762650133900,0.64575109,101910.0,101900.0,0.14118132]
[1762650134697,0.64575109,101910.0,101900.0,0.04300702]
[1762650135489,0.12530469,101910.0,101900.0,0.15507132]
[1762650135795,0.25878933,101910.0,101900.0,0.15507132]
[1762650136099,0.22346939,101910.0,101900.0,0.15507132]
[1762650136396,0.25878438,101910.0,101900.0,0.15507132]
[1762650136594,0.20579945,101910.0,101900.0,0.15507132]
[1762650136895,0.10763475,101910.0,101900.0,0.15507132]
[1762650137291,0.10763475,101910.0,101900.0,0.25688805]
[1762650137488,0.06340475,101910.0,101900.0,0.61768805]
[1762650137687,0.09329992,101910.0,101900.0,0.61768805]
[1762650137891,0.11638968,101910.0,101900.0,0.61768805]
[1762650138295,0.06340475,101910.0,101900.0,0.61768805]
[1762650138489,0.20591945,101910.0,101900.0,0.61768805]
[1762650138694,0.21856945,101910.0,101900.0,0.15507132]
[1762650138991,0.21856945,101910.0,101900.0,0.51587132]
[1762650139197,0.21856945,101910.0,101900.0,0.15507132]
[1762650139605,0.68118618,101910.0,101900.0,0.04300702]
[1762650139791,0.63235438,101910.0,101900.0,0.04300702]
[1762650139993,0.57936945,101910.0,101900.0,0.04300702]
[1762650140187,0.63235438,101910.0,101900.0,0.04300702]
[1762650141397,0.63233728,101910.0,101900.0,0.04300702]
[1762650141706,0.59703939,101910.0,101900.0,0.04300702]
[1762650142399,0.57935494,101910.0,101900.0,0.04300702]
[1762650143203,0.63233987,101910.0,101900.0,0.04300702]
[1762650143501,0.68117167,101910.0,101900.0,0.04300702]
[1762650143801,0.57935494,101910.0,101900.0,0.04300702]
[1762650144002,0.68117167,101910.0,101900.0,0.00014702]
[1762650145896,0.7341566,101910.0,101900.0,0.00014702]
[1762650146802,0.68117167,101910.0,101900.0,0.00014702]
[1762650148206,0.68117167,101910.0,101900.0,0.02186702]
[1762650154207,0.7341566,101910.0,101900.0,0.02186702]
[1762650154595,0.7341566,101910.0,101900.0,0.00014702]
[1762650154800,0.69885612,101910.0,101900.0,0.00014702]
[1762650156111,0.7341639,101910.0,101900.0,0.00014702]
[1762650156811,0.69885612,101910.0,101900.0,0.00014702]
[1762650164110,0.64587119,101910.0,101900.0,0.00014702]
[1762650164311,0.69881451,101910.0,101900.0,0.00014702]
[1762650165210,1.05961451,101910.0,101900.0,0.00014702]
[1762650172412,1.00667119,101910.0,101900.0,0.00014702]
[1762650172616,1.07728197,101910.0,101900.0,0.00014702]
[1762650174521,1.00667119,101910.0,101900.0,0.00014702]
[1762650174709,1.00667119,101910.0,101900.0,0.04424702]
[1762650174910,1.00667119,101910.0,101900.0,0.00014702]
[1762650179122,1.05967518,101910.0,101900.0,0.00014702]
[1762650181626,1.05967518,101910.0,101900.0,0.02138702]
[1762650182417,1.07728197,101910.0,101900.0,0.02138702]
[1762650183327,1.07728197,101910.0,101900.0,0.04240702]
[1762650183522,0.89220446,101910.0,101900.0,0.05635702]
[1762650183723,1.05115695,101910.0,101900.0,0.05635702]
[1762650183919,0.96289348,101910.0,101900.0,0.05635702]
[1762650184925,0.97654348,101910.0,101900.0,0.05635702]
[1762650185123,0.95886642,101910.0,101900.0,0.05635702]
[1762650186230,0.95886642,101910.0,101900.0,0.15453122]
[1762650186524,0.94521642,101910.0,101900.0,0.15453122]
[1762650187119,0.58441642,101910.0,101900.0,0.15453122]
[1762650190932,0.56671548,101910.0,101900.0,0.25634795]
[1762650191530,0.56671548,101910.0,101900.0,0.15817375]
[1762650193129,0.56671548,101910.0,101900.0,0.25634805]
[1762650193130,0.56571548,101910.0,101900.0,0.25634805]
[1762650193330,0.53040446,101910.0,101900.0,0.25634805]
[1762650194429,0.53040446,101910.0,101900.0,0.35806812]
[1762650194632,0.53040446,101910.0,101900.0,0.50636812]
[1762650195834,0.16960446,101910.0,101900.0,0.50636812]
[1762650197226,0.16960446,101910.0,101900.0,0.40819382]
[1762650197535,0.16960446,101910.0,101900.0,0.40459962]
[1762650198331,0.16960446,101910.0,101900.0,0.25629962]
[1762650207634,0.16960446,101910.0,101900.0,0.15812542]
[1762650207635,0.53040446,101910.0,101900.0,0.15812542]
[1762650208135,0.53040446,101910.0,101900.0,0.04240702]
[1762650208136,0.68098388,101910.0,101900.0,0.04240702]
[1762650208438,0.73399584,101910.0,101900.0,0.00014702]
[1762650208938,0.68098388,101910.0,101900.0,0.02236702]
[1762650210327,1.04178388,101910.0,101900.0,0.02236702]
[1762650211338,1.09479584,101910.0,101900.0,0.02236702]
[1762650211522,1.09479584,101910.0,101900.0,0.00014702]
[1762650211922,1.04178388,101910.0,101900.0,0.00014702]
[1762650212334,1.09479584,101910.0,101900.0,0.00014702]
[1762650212537,1.04178388,101910.0,101900.0,0.00014702]
[1762650214147,1.04178388,101910.0,101900.0,0.02236702]
[1762650214842,1.04178388,101910.0,101900.0,0.00014702]
[1762650217439,0.92651548,101910.0,101900.0,0.25860962]
[1762650217740,0.79303976,101910.0,101900.0,0.36037802]
[1762650218127,0.79303976,101910.0,101900.0,0.50867802]
[1762650218328,0.07143976,101910.0,101900.0,0.50867802]
[1762650219537,0.02708976,101910.0,101900.0,0.50867802]
[1762650219932,0.02708976,101910.0,101900.0,0.96649802]
[1762650220135,0.02708976,101910.0,101900.0,0.72117802]
[1762650221032,0.02708976,101910.0,101900.0,0.96649802]
[1762650222630,0.02708976,101910.0,101900.0,0.72117802]
[1762650223442,0.02708976,101910.0,101900.0,0.96649802]
[1762650224040,0.02708976,101910.0,101900.0,1.11479802]
[1762650224441,0.02708976,101910.0,101900.0,0.86947802]
[1762650226443,0.02708976,101910.0,101900.0,0.96649802]
[1762650226651,0.02708976,101910.0,101900.0,0.72117802]
[1762650226840,0.02308976,101910.0,101900.0,0.82294642]
[1762650227042,0.02608976,101910.0,101900.0,1.02346642]
[1762650227542,0.02608976,101910.0,101900.0,0.82264642]
[1762650227847,0.02608976,101910.0,101900.0,1.06796642]
[1762650228046,0.02608976,101910.0,101900.0,0.82264642]
[1762650228450,0.02608976,101910.0,101900.0,1.06796642]
[1762650228945,0.02608976,101910.0,101900.0,0.96619802]
[1762650229139,0.02608976,101910.0,101900.0,0.72087802]
[1762650229540,0.02608976,101910.0,101900.0,0.82264642]
[1762650229847,0.02608976,101910.0,101900.0,0.97094642]
[1762650230046,0.02608976,101910.0,101900.0,1.21626642]
[1762650230236,0.44080804,101930.0,101920.0,0.3494218]
[1762650231051,0.08000804,101930.0,101920.0,0.7102218]
[1762650231239,0.04469702,101930.0,101920.0,0.7102218]
[1762650231646,0.05069702,101930.0,101920.0,0.7102218]
[1762650235044,0.05069702,101930.0,101920.0,0.8585218]
[1762650236744,0.05069702,101930.0,101920.0,1.1038018]
[1762650236951,0.05069702,101930.0,101920.0,0.8585218]
[1762650237953,0.14884232,101930.0,101920.0,0.8585218]
[1762650239047,0.05069702,101930.0,101920.0,0.8585218]
[1762650240353,0.00614702,101930.0,101920.0,0.8585218]
[1762650241045,0.02929702,101930.0,101920.0,0.8585218]
[1762650241564,0.00614702,101930.0,101920.0,0.9602902]
[1762650241850,0.00614702,101930.0,101920.0,0.8585218]
[1762650242042,0.00614702,101930.0,101920.0,1.1038018]
[1762650242549,0.00614702,101930.0,101920.0,0.9555018]
[1762650242755,0.00614702,101930.0,101920.0,1.0572702]
[1762650243251,0.00614702,101930.0,101920.0,1.2055702]
[1762650243660,0.00614702,101930.0,101920.0,0.9602902]
[1762650243849,0.00614702,101930.0,101920.0,1.2055702]
[1762650244042,0.00614702,101930.0,101920.0,0.9602902]
[1762650244550,0.00614702,101930.0,101920.0,1.2055702]
[1762650244960,0.55247442,101960.0,101950.0,0.1428061]
[1762650245267,0.57519501,101960.0,101950.0,0.2445745]
[1762650246355,0.02272059,101960.0,101950.0,0.7208129]
[1762650246664,0.02272059,101960.0,101950.0,0.9660129]
[1762650246854,0.02272059,101960.0,101950.0,0.7208129]
[1762650247047,0.00014702,101970.0,101960.0,0.1563065]
[1762650247249,0.00014702,101970.0,101960.0,0.7206433]
[1762650247453,0.00014702,101970.0,101960.0,0.9658433]
[1762650248153,0.04522702,101970.0,101960.0,0.5171065]
[1762650248362,0.04522702,101970.0,101960.0,0.7206433]
[1762650248363,0.05795702,101970.0,101960.0,0.7206433]
[1762650248560,0.04522702,101970.0,101960.0,0.7206433]
[1762650248750,0.04622702,101970.0,101960.0,0.7206433]
[1762650250661,0.14433382,101970.0,101960.0,0.7206433]
[1762650251756,0.04622702,101970.0,101960.0,0.7206433]
[1762650252956,0.04622702,101970.0,101960.0,0.8689433]
[1762650253664,0.00114702,101970.0,101960.0,0.8689433]
[1762650254265,0.00114702,101970.0,101960.0,0.9106065]
[1762650254571,0.00114702,101970.0,101960.0,1.1141433]
[1762650255265,0.00114702,101970.0,101960.0,0.9707117]
[1762650255470,0.00114702,101970.0,101960.0,1.1141433]
[1762650255762,0.00114702,101970.0,101960.0,1.2159117]
[1762650255977,0.05781,101990.0,101980.0,0.1455272]
[1762650256272,0.067716,101990.0,101980.0,0.349064]
[1762650256470,0.067716,101990.0,101980.0,0.24713526]
[1762650257267,0.045786,101990.0,101980.0,0.60793526]
[1762650257473,0.070716,101990.0,101980.0,0.60793526]
[1762650259073,0.1688036,101990.0,101980.0,0.60793526]
[1762650259668,0.070716,101990.0,101980.0,0.60793526]
[1762650260765,0.1688036,101990.0,101980.0,0.60793526]
[1762650263773,0.1815336,101990.0,101980.0,0.14628806]
[1762650263974,0.1815336,101990.0,101980.0,0.24438526]
[1762650264276,0.1815336,101990.0,101980.0,0.04468]
[1762650264475,0.5423336,101990.0,101980.0,0.04468]
[1762650265370,0.5423336,101990.0,101980.0,0.1427772]
[1762650268276,0.57764462,101990.0,101980.0,0.1427772]
[1762650268675,0.5423336,101990.0,101980.0,0.1427772]
[1762650269475,0.5423336,101990.0,101980.0,0.04468]
[1762650269979,0.5423336,101990.0,101980.0,0.1427773]
[1762650270376,0.5423336,101990.0,101980.0,0.04468]
[1762650270569,0.57764462,101990.0,101980.0,0.02168]
[1762650270771,0.63065658,101990.0,101980.0,0.16998]
[1762650271469,0.69695362,101990.0,101980.0,0.1483]
[1762650271869,0.59534556,101990.0,101980.0,0.1483]
[1762650272373,0.5423336,101990.0,101980.0,0.1483]
[1762650272579,0.71463068,101990.0,101980.0,0.1483]
[1762650274381,0.71473365,101990.0,101980.0,0.1483]
[1762650276781,0.1568272,101980.0,101970.0,0.19155702]
[1762650276982,0.54036617,101980.0,101970.0,0.19155702]
[1762650278175,0.64397423,101980.0,101970.0,0.00014702]
[1762650278371,0.0981068,101970.0,101960.0,0.1483]
[1762650278674,0.0981068,101970.0,101960.0,0.19141]
[1762650278675,0.61090448,101970.0,101960.0,0.19141]
[1762650279479,0.54037577,101970.0,101960.0,0.2895265]
[1762650279772,0.54037577,101970.0,101960.0,0.19141]
[1762650280789,0.59325141,101970.0,101960.0,0.19141]
[1762650280977,0.59325141,101970.0,101960.0,0.04311]
[1762650282483,0.57561586,101970.0,101960.0,0.04311]
[1762650285186,0.54037577,101970.0,101960.0,0.04311]
[1762650285585,0.54037577,101970.0,101960.0,0.1412265]
[1762650286085,0.54037577,101970.0,101960.0,0.04311]
[1762650287392,0.57561586,101970.0,101960.0,0.04311]
[1762650290781,0.57561586,101970.0,101960.0,0.1412265]
[1762650291581,0.57561586,101970.0,101960.0,0.04311]
[1762650291987,0.57561586,101970.0,101960.0,0.1412265]
[1762650293089,0.6284915,101970.0,101960.0,0.1412265]
[1762650293283,0.57561586,101970.0,101960.0,0.1412265]
[1762650295990,0.57561586,101970.0,101960.0,0.24283456]
[1762650296195,0.57561596,101970.0,101960.0,0.24283456]
[1762650297189,0.57561596,101970.0,101960.0,0.39113456]
[1762650297992,0.57561596,101970.0,101960.0,0.1483]
[1762650298897,0.57561596,101970.0,101960.0,0.1699]
[1762650300899,0.6284916,101970.0,101960.0,0.1699]
[1762650301797,0.6284916,101970.0,101960.0,0.1483]
[1762650301999,0.69485957,101970.0,101960.0,0.1483]
[1762650303195,0.1557265,101960.0,101950.0,0.29026252]
[1762650303400,0.62744755,101960.0,101950.0,0.00014702]
[1762650303592,0.72905561,101960.0,101950.0,0.00014702]
[1762650303794,0.69374917,101960.0,101950.0,0.00014702]
[1762650304093,0.59214111,101960.0,101950.0,0.00014702]
[1762650304689,0.56940214,101960.0,101950.0,0.00014702]
[1762650304994,0.61002958,101960.0,101950.0,0.00014702]
[1762650305297,0.59245122,101960.0,101950.0,0.00014702]
[1762650306187,0.69405928,101960.0,101950.0,0.00114702]
[1762650306800,0.69605928,101960.0,101950.0,0.00014702]
[1762650307690,0.59445122,101960.0,101950.0,0.00014702]
[1762650307890,0.69605928,101960.0,101950.0,0.00014702]
[1762650309505,0.1557457,101940.0,101930.0,0.1418294]
[1762650309803,0.14337434,101940.0,101930.0,0.1418294]
[1762650310100,0.14337434,101940.0,101930.0,0.04369]
[1762650310899,0.14337434,101940.0,101930.0,0.1418354]
[1762650312498,0.14337434,101940.0,101930.0,0.1428354]
[1762650313001,0.08058437,101940.0,101930.0,0.24444346]
[1762650313605,0.17872007,101940.0,101930.0,0.24444346]
[1762650315094,0.17872007,101940.0,101930.0,0.60524346]
[1762650318306,0.17872007,101940.0,101930.0,0.60534802]
[1762650318903,0.17872007,101940.0,101930.0,0.24454802]
[1762650319096,0.17872007,101940.0,101930.0,0.60534802]
[1762650323606,0.17872007,101940.0,101930.0,0.75364802]
[1762650324215,0.17872007,101940.0,101930.0,0.76563802]
[1762650329209,0.21399055,101940.0,101930.0,0.76563802]
[1762650329411,0.18845471,101940.0,101930.0,0.76563802]
[1762650329905,0.09031901,101940.0,101930.0,0.76563802]
[1762650331009,0.08122485,101940.0,101930.0,0.76563802]
[1762650331206,0.20054055,101940.0,101930.0,0.76563802]
[1762650331906,0.10240485,101940.0,101930.0,0.76563802]
[1762650332600,0.06713437,101940.0,101930.0,0.76563802]
[1762650334000,0.16527017,101940.0,101930.0,0.76563802]
[1762650334200,0.06713437,101940.0,101930.0,0.76563802]
[1762650334900,0.06713437,101940.0,101930.0,0.40483802]
[1762650335206,0.06713437,101940.0,101930.0,0.76563802]
[1762650335601,0.16527007,101940.0,101930.0,0.6639254]
[1762650335913,0.16527007,101940.0,101930.0,0.76563802]
[1762650347435,0.16527007,101940.0,101930.0,0.66749262]
[1762650347636,0.67618317,101940.0,101930.0,0.19299]
[1762650347932,0.72913352,101940.0,101930.0,0.19299]
[1762650348436,0.67618317,101940.0,101930.0,0.19299]
[1762650348823,0.68615772,101940.0,101930.0,0.19299]
[1762650351932,0.5844451,101940.0,101930.0,0.19299]
[1762650352138,0.68615772,101940.0,101930.0,0.19299]
[1762650352538,0.73910807,101940.0,101930.0,0.19299]
[1762650352740,0.73910807,101940.0,101930.0,0.0226]
[1762650353134,0.73910807,101940.0,101930.0,0.04499]
[1762650353933,0.62426545,101940.0,101930.0,0.0578]
[1762650354838,0.63739545,101940.0,101930.0,0.0578]
[1762650356544,0.6274209,101940.0,101930.0,0.1559454]
[1762650356730,0.6274209,101940.0,101930.0,0.0578]
[1762650357040,0.67618317,101940.0,101930.0,0.0578]
[1762650358144,0.67618317,101940.0,101930.0,0.15951262]
[1762650358443,0.57447055,101940.0,101930.0,0.15951262]
[1762650359143,0.57447055,101940.0,101930.0,0.0578]
[1762650359332,0.68604518,101940.0,101930.0,0.0578]
[1762650360739,0.68604518,101940.0,101930.0,0.15951262]
[1762650360936,0.67618317,101940.0,101930.0,0.15951262]
[1762650361142,0.67618317,101940.0,101930.0,0.25765802]
[1762650361340,0.67618317,101940.0,101930.0,0.15951262]
[1762650362330,0.67618317,101940.0,101930.0,0.1559455]
[1762650362533,0.69386304,101940.0,101930.0,0.1559455]
[1762650362938,0.70355878,101940.0,101930.0,0.0578]
[1762650363344,0.69386304,101940.0,101930.0,0.0578]
[1762650363838,0.57902042,101940.0,101930.0,0.25765812]
[1762650364046,0.21822042,101940.0,101930.0,0.25765812]
[1762650364646,0.12008472,101940.0,101930.0,0.25765812]
[1762650364836,0.21822062,101940.0,101930.0,0.25765812]
[1762650367545,0.21822062,101940.0,101930.0,0.40595812]
[1762650370846,0.21822062,101940.0,101930.0,0.76675812]
[1762650371143,0.05827464,101940.0,101930.0,0.86847074]
[1762650371335,0.18652674,101950.0,101940.0,0.1552858]
[1762650371538,0.07611626,101950.0,101940.0,0.71951104]
[1762650371748,0.05846584,101950.0,101940.0,0.71951104]
[1762650372450,0.02316591,101950.0,101940.0,0.71951104]
[1762650372643,0.49421643,101960.0,101950.0,0.05511]
[1762650372844,0.02291156,101960.0,101950.0,0.71746144]
[1762650374343,0.02291156,101960.0,101950.0,0.71946144]
[1762650374644,0.02291156,101960.0,101950.0,0.77349931]
[1762650374950,0.00014702,101970.0,101960.0,0.1550766]
[1762650375133,0.00014702,101970.0,101960.0,0.71930184]
[1762650376246,0.55197463,101990.0,101980.0,0.04393]
[1762650376450,0.1558747,101990.0,101980.0,0.14564262]
[1762650377443,0.1558747,101990.0,101980.0,0.24373992]
[1762650377645,0.1427447,101990.0,101980.0,0.25695992]
[1762650377843,0.1447447,101990.0,101980.0,0.25695992]
[1762650378136,0.1447447,101990.0,101980.0,0.15886262]
[1762650378452,0.1447447,101990.0,101980.0,0.25686546]
[1762650379854,0.1427447,101990.0,101980.0,0.25686546]
[1762650380152,0.1437447,101990.0,101980.0,0.25686546]
[1762650380846,0.1571547,101990.0,101980.0,0.25686546]
[1762650381051,0.1571547,101990.0,101980.0,0.05715]
[1762650381352,0.1571547,101990.0,101980.0,0.04393]
[1762650382047,0.1571547,101990.0,101980.0,0.1420273]
[1762650382256,0.1571547,101990.0,101980.0,0.2903273]
[1762650383255,0.1571547,101990.0,101980.0,0.19223]
[1762650383445,0.1571547,101990.0,101980.0,0.2903274]
[1762650384752,0.17994514,101990.0,101980.0,0.2903274]
[1762650386556,0.17994514,101990.0,101980.0,0.3035874]
[1762650391156,0.17994514,101990.0,101980.0,0.40520556]
[1762650398166,0.16653514,101990.0,101980.0,0.40520556]
[1762650398369,0.20183507,101990.0,101980.0,0.40520556]
[1762650400270,0.21545507,101990.0,101980.0,0.40520556]
[1762650401167,0.26840542,101990.0,101980.0,0.40520556]
[1762650402255,0.10372256,101990.0,101980.0,0.40520556]
[1762650402557,0.20181036,101990.0,101980.0,0.40520556]
[1762650402753,0.01875972,101990.0,101980.0,0.25690556]
[1762650402964,0.04416804,102000.0,101990.0,0.1416278]
[1762650403164,0.04416804,102000.0,101990.0,0.60404596]
[1762650403562,0.02124804,102000.0,101990.0,0.60404596]
[1762650403959,9.804e-05,102000.0,101990.0,0.60404596]
[1762650404161,0.00109804,102000.0,101990.0,0.60404596]
[1762650404558,0.00109804,102000.0,101990.0,0.68392872]
[1762650405466,0.00109804,102000.0,101990.0,0.92904872]
[1762650405872,0.02224804,102000.0,101990.0,0.92904872]
[1762650406070,0.02224804,102000.0,101990.0,0.68392872]
[1762650406371,0.00109804,102000.0,101990.0,0.92904872]
[1762650406573,0.00109804,102000.0,101990.0,0.68392872]
[1762650406767,0.00109804,102000.0,101990.0,0.60404596]
[1762650407975,0.00109804,102000.0,101990.0,0.68239087]
[1762650409476,0.52522445,102020.0,102010.0,0.1430986]
[1762650409477,0.56820445,102020.0,102010.0,0.1430986]
[1762650409678,0.5152541,102020.0,102010.0,0.24471676]
[1762650410378,0.0566,102030.0,102020.0,0.143089]
[1762650410677,0.0566,102030.0,102020.0,0.24470716]
[1762650410874,0.0566,102030.0,102020.0,0.60550716]
[1762650411271,0.0566,102030.0,102020.0,0.61213716]
[1762650411468,0.04298,102030.0,102020.0,0.61213716]
[1762650411979,0.56839015,102040.0,102030.0,0.1430794]
[1762650412481,0.56839015,102040.0,102030.0,0.24469756]
[1762650412667,0.47035035,102040.0,102030.0,0.24469756]
[1762650413469,0.4174,102040.0,102030.0,0.24469756]
[1762650413971,0.4174,102040.0,102030.0,0.25132756]
[1762650414977,0.44000709,102040.0,102030.0,0.25132756]
[1762650415280,0.53804679,102040.0,102030.0,0.24469756]
[1762650417876,0.17724679,102040.0,102030.0,0.24469756]
[1762650418183,0.17724679,102040.0,102030.0,0.60549756]
[1762650420477,0.07920709,102040.0,102030.0,0.60649756]
[1762650421487,0.07920709,102040.0,102030.0,0.61312756]
[1762650421874,0.17724689,102040.0,102030.0,0.60649756]
[1762650422379,0.07920709,102040.0,102030.0,0.60649756]
[1762650422579,0.0566,102040.0,102030.0,0.60649756]
[1762650423980,0.1546398,102040.0,102030.0,0.60649756]
[1762650424482,0.0566,102040.0,102030.0,0.60649756]
[1762650424691,0.1546398,102040.0,102030.0,0.60649756]
[1762650425287,0.17654887,102040.0,102030.0,0.60649756]
[1762650425490,0.1546398,102040.0,102030.0,0.60649756]
[1762650426188,0.17655287,102040.0,102030.0,0.60649756]
[1762650428190,0.07851307,102040.0,102030.0,0.60649756]
[1762650430495,0.17655297,102040.0,102030.0,0.60649756]
[1762650431682,0.07851307,102040.0,102030.0,0.60649756]
[1762650431985,0.17655287,102040.0,102030.0,0.60649756]
[1762650432390,0.17655287,102040.0,102030.0,0.5048794]
[1762650432593,0.17655287,102040.0,102030.0,0.60649756]
[1762650436588,0.17655287,102040.0,102030.0,0.60549756]
[1762650436997,0.17655287,102040.0,102030.0,0.5038794]
[1762650437298,0.17655287,102040.0,102030.0,0.60549756]
[1762650438095,0.07851307,102040.0,102030.0,0.75379756]
[1762650438286,0.07851307,102040.0,102030.0,0.75369989]
[1762650438287,0.17655287,102040.0,102030.0,0.75369989]
[1762650439098,0.17655287,102040.0,102030.0,0.65565049]
[1762650439297,0.82851517,102040.0,102030.0,0.1483]
[1762650439495,0.7933442,102040.0,102030.0,0.1483]
[1762650440194,0.81092256,102040.0,102030.0,0.1483]
[1762650442201,0.74039385,102040.0,102030.0,0.1483]
[1762650443201,0.79329853,102040.0,102030.0,0.1483]
[1762650443699,0.79329853,102040.0,102020.0,0.1483]
[1762650444004,0.65221968,102030.0,102020.0,0.19313]
[1762650444202,0.72703743,102030.0,102020.0,0.1483]
[1762650444594,0.154639,102020.0,102010.0,0.19327702]
[1762650444795,0.67414055,102020.0,102010.0,0.19327702]
[1762650445201,0.67414055,102020.0,102010.0,0.04497702]
[1762650445706,0.67414055,102020.0,102010.0,0.14304562]
[1762650445905,0.57262006,102020.0,102010.0,0.04497702]
[1762650446104,0.67414055,102020.0,102010.0,0.04497702]
[1762650446411,0.67414055,102020.0,102010.0,0.14304562]
[1762650447201,0.57262006,102020.0,102010.0,0.24456611]
[1762650448707,0.57262006,102020.0,102010.0,0.14304562]
[1762650448908,0.67414055,102020.0,102010.0,0.24456611]
[1762650449400,0.57262006,102020.0,102010.0,0.24456611]
[1762650449600,0.67414055,102020.0,102010.0,0.24456611]
[1762650450010,0.57262006,102020.0,102010.0,0.24456611]
[1762650450204,0.53735207,102020.0,102010.0,0.24456611]
[1762650450901,0.53735207,102020.0,102010.0,0.14649751]
[1762650451098,0.53735207,102020.0,102010.0,0.24456611]
[1762650451294,0.43929307,102020.0,102010.0,0.24456611]
[1762650451602,0.07849307,102020.0,102010.0,0.60536611]
[1762650452410,0.17655207,102020.0,102010.0,0.60536611]
[1762650452711,0.17655207,102020.0,102010.0,0.24456611]
[1762650456317,0.17655207,102020.0,102010.0,0.14649751]
[1762650456513,0.53735207,102020.0,102010.0,0.14649751]
[1762650457015,0.53735207,102020.0,102010.0,0.24456611]
[1762650457820,0.07849307,102020.0,102010.0,0.60536611]
[1762650458006,0.04327307,102020.0,102010.0,0.7135166]
[1762650458610,0.02191307,102020.0,102010.0,0.7135166]
[1762650458815,0.1781423,102030.0,102020.0,0.141089]
[1762650459008,0.1781423,102030.0,102020.0,0.70492998]
[1762650459716,0.080092,102030.0,102020.0,0.70492998]
[1762650460817,0.1781414,102030.0,102020.0,0.70492998]
[1762650461520,0.1781414,102030.0,102020.0,0.85322998]
[1762650462013,0.1781414,102030.0,102020.0,0.75517098]
[1762650462215,0.5389414,102030.0,102020.0,0.29285049]
[1762650463703,0.5389414,102030.0,102020.0,0.39090949]
[1762650463902,0.5389414,102030.0,102020.0,0.49242998]
[1762650464109,0.1781414,102030.0,102020.0,0.85322998]
[1762650464411,0.1781414,102030.0,102020.0,0.49242998]
[1762650464713,0.080092,102030.0,102020.0,0.49242998]
[1762650464923,0.068092,102030.0,102020.0,0.86050998]
[1762650465118,0.1661414,102030.0,102020.0,0.86050998]
[1762650465421,0.1790114,102030.0,102020.0,0.86050998]
[1762650467621,0.022442,102030.0,102020.0,0.86050998]